[Event "Titled Tuesday Blitz January 31 Early 2023"]
[White "Andreikin, Dmitry"]
[Black "Malek, Jan"]
[WhiteFideId "4158814"]
[BlackFideId "21864080"]
[WhiteElo "2729"]
[BlackElo "2370"]
[Result "1/2-1/2"]
[Round "02"]
[TimeControl "180+2"]
[Date "2023.01.31"]
[WhiteClock "0:00:34"]
[BlackClock "0:00:05"]

1. d4 {[%clk 0:03:00]}  d5 {[%clk 0:02:59]} 2. c4 {[%clk 0:03:01]}  e6 {[%clk 0:02:59]} 3. Nc3 {[%clk 0:02:59]}  Nf6 {[%clk 0:02:55]} 4. cxd5 {[%clk 0:02:59]}  exd5 {[%clk 0:02:56]} 5. Nf3 {[%clk 0:02:54]}  c6 {[%clk 0:02:51]} 6. Bf4 {[%clk 0:02:52]}  Bd6 {[%clk 0:02:50]} 7. Bg3 {[%clk 0:02:52]}  O-O {[%clk 0:02:49]} 8. e3 {[%clk 0:02:52]}  Bf5 {[%clk 0:02:46]} 9. Qb3 {[%clk 0:02:48]}  Qe7 {[%clk 0:02:20]} 10. Be2 {[%clk 0:02:40]}  a5 {[%clk 0:01:52]} 11. O-O {[%clk 0:02:36]}  Bxg3 {[%clk 0:01:21]} 12. hxg3 {[%clk 0:02:37]}  Na6 {[%clk 0:01:21]} 13. Ne5 {[%clk 0:02:33]}  Nb4 {[%clk 0:01:17]} 14. Rfc1 {[%clk 0:02:31]}  Nd7 {[%clk 0:01:10]} 15. Nxd7 {[%clk 0:02:24]}  Qxd7 {[%clk 0:01:10]} 16. Na4 {[%clk 0:02:23]}  Qe7 {[%clk 0:01:02]} 17. a3 {[%clk 0:02:20]}  Na6 {[%clk 0:01:01]} 18. Qb6 {[%clk 0:02:19]}  Nb8 {[%clk 0:00:42]} 19. Nc5 {[%clk 0:02:15]}  Bc8 {[%clk 0:00:42]} 20. b4 {[%clk 0:02:12]}  Qd8 {[%clk 0:00:35]} 21. Na4 {[%clk 0:02:09]}  axb4 {[%clk 0:00:22]} 22. axb4 {[%clk 0:02:10]}  Nd7 {[%clk 0:00:15]} 23. Qxd8 {[%clk 0:02:10]}  Rxd8 {[%clk 0:00:16]} 24. b5 {[%clk 0:02:10]}  Nf6 {[%clk 0:00:07]} 25. Nc5 {[%clk 0:02:03]}  Rxa1 {[%clk 0:00:06]} 26. Rxa1 {[%clk 0:02:04]}  cxb5 {[%clk 0:00:06]} 27. Ra8 {[%clk 0:02:01]}  Rf8 {[%clk 0:00:03]} 28. Bxb5 {[%clk 0:01:59]}  b6 {[%clk 0:00:03]} 29. Na4 {[%clk 0:01:59]}  Bd7 {[%clk 0:00:04]} 30. Rxf8+ {[%clk 0:01:49]}  Kxf8 {[%clk 0:00:05]} 31. Bxd7 {[%clk 0:01:48]}  Nxd7 {[%clk 0:00:06]} 32. g4 {[%clk 0:01:47]}  Ke7 {[%clk 0:00:06]} 33. Nc3 {[%clk 0:01:45]}  Kd6 {[%clk 0:00:06]} 34. Kf1 {[%clk 0:01:44]}  Kc6 {[%clk 0:00:07]} 35. Ke2 {[%clk 0:01:45]}  b5 {[%clk 0:00:07]} 36. Na2 {[%clk 0:01:45]}  Nb8 {[%clk 0:00:05]} 37. Nb4+ {[%clk 0:01:45]}  Kd6 {[%clk 0:00:06]} 38. Kd3 {[%clk 0:01:45]}  g5 {[%clk 0:00:04]} 39. Kc3 {[%clk 0:01:44]}  Nc6 {[%clk 0:00:04]} 40. Nd3 {[%clk 0:01:32]}  Na5 {[%clk 0:00:03]} 41. Kb4 {[%clk 0:01:32]}  Nc4 {[%clk 0:00:02]} 42. Kxb5 {[%clk 0:01:32]}  Nd2 {[%clk 0:00:03]} 43. Kb4 {[%clk 0:01:28]}  Ne4 {[%clk 0:00:04]} 44. Kb3 {[%clk 0:01:24]}  f6 {[%clk 0:00:04]} 45. Kc2 {[%clk 0:01:24]}  Ke7 {[%clk 0:00:04]} 46. f3 {[%clk 0:01:21]}  Nd6 {[%clk 0:00:03]} 47. Nb4 {[%clk 0:01:21]}  Ke6 {[%clk 0:00:02]} 48. Kd3 {[%clk 0:01:22]}  f5 {[%clk 0:00:02]} 49. gxf5+ {[%clk 0:01:20]}  Nxf5 {[%clk 0:00:03]} 50. Nxd5 {[%clk 0:01:21]}  Nh4 {[%clk 0:00:02]} 51. Nc7+ {[%clk 0:01:14]}  Kd7 {[%clk 0:00:02]} 52. Na6 {[%clk 0:01:14]}  Nxg2 {[%clk 0:00:02]} 53. d5 {[%clk 0:01:15]}  Kd6 {[%clk 0:00:02]} 54. Kd4 {[%clk 0:01:13]}  Ne1 {[%clk 0:00:03]} 55. Ke4 {[%clk 0:01:11]}  h5 {[%clk 0:00:02]} 56. Nb4 {[%clk 0:00:48]}  h4 {[%clk 0:00:02]} 57. Nc6 {[%clk 0:00:48]}  h3 {[%clk 0:00:02]} 58. Nd4 {[%clk 0:00:49]}  h2 {[%clk 0:00:02]} 59. Nf5+ {[%clk 0:00:49]}  Kc5 {[%clk 0:00:03]} 60. Ng3 {[%clk 0:00:50]}  Ng2 {[%clk 0:00:03]} 61. Nh1 {[%clk 0:00:44]}  Kd6 {[%clk 0:00:04]} 62. Nf2 {[%clk 0:00:44]}  Kc5 {[%clk 0:00:04]} 63. Nd3+ {[%clk 0:00:44]}  Kd6 {[%clk 0:00:04]} 64. Nf2 {[%clk 0:00:45]}  Kc5 {[%clk 0:00:04]} 65. f4 {[%clk 0:00:34]}  gxf4 {[%clk 0:00:04]} 66. exf4 {[%clk 0:00:34]}  Nxf4 {[%clk 0:00:04]} 67. Kxf4 {[%clk 0:00:34]}  Kxd5 {[%clk 0:00:05]} 68. Kg3 {[%clk 0:00:35]}  h1=Q {[%clk 0:00:05]} 69. Nxh1 {[%clk 0:00:34]} 1/2-1/2


[Site "https://www.chess.com"]

[Event "Titled Tuesday Blitz January 31 Early 2023"]
[White "Samant Aditya S"]
[Black "Sarana, Alexey"]
[WhiteFideId "35080580"]
[BlackFideId "24133795"]
[WhiteElo "2501"]
[BlackElo "2685"]
[Result "0-1"]
[Round "02"]
[TimeControl "180+2"]
[Date "2023.01.31"]
[WhiteClock "0:00:04"]
[BlackClock "0:00:20"]

1. e4 {[%clk 0:03:00]}  e5 {[%clk 0:02:55]} 2. Nf3 {[%clk 0:03:01]}  Nc6 {[%clk 0:02:56]} 3. Bb5 {[%clk 0:02:59]}  a6 {[%clk 0:02:56]} 4. Ba4 {[%clk 0:02:59]}  b5 {[%clk 0:02:57]} 5. Bb3 {[%clk 0:02:59]}  Na5 {[%clk 0:02:57]} 6. O-O {[%clk 0:02:04]}  d6 {[%clk 0:02:57]} 7. d4 {[%clk 0:01:37]}  exd4 {[%clk 0:02:58]} 8. Nxd4 {[%clk 0:01:37]}  Nf6 {[%clk 0:02:57]} 9. Bd5 {[%clk 0:01:13]}  Bb7 {[%clk 0:02:25]} 10. Bxb7 {[%clk 0:00:46]}  Nxb7 {[%clk 0:02:25]} 11. Re1 {[%clk 0:00:47]}  Qd7 {[%clk 0:02:19]} 12. Bg5 {[%clk 0:00:42]}  Ng4 {[%clk 0:02:11]} 13. Nc3 {[%clk 0:00:34]}  h6 {[%clk 0:01:58]} 14. Bh4 {[%clk 0:00:25]}  g5 {[%clk 0:01:34]} 15. Bg3 {[%clk 0:00:24]}  h5 {[%clk 0:01:25]} 16. Nf5 {[%clk 0:00:23]}  Nc5 {[%clk 0:01:09]} 17. Nd5 {[%clk 0:00:15]}  O-O-O {[%clk 0:01:04]} 18. b4 {[%clk 0:00:13]}  Nxe4 {[%clk 0:00:55]} 19. Rxe4 {[%clk 0:00:06]}  Qxf5 {[%clk 0:00:55]} 20. Re7 {[%clk 0:00:06]}  Rd7 {[%clk 0:00:45]} 21. Rxd7 {[%clk 0:00:07]}  Kxd7 {[%clk 0:00:44]} 22. h3 {[%clk 0:00:06]}  Ne5 {[%clk 0:00:39]} 23. Qd4 {[%clk 0:00:07]}  h4 {[%clk 0:00:26]} 24. Bh2 {[%clk 0:00:06]}  Bg7 {[%clk 0:00:21]} 25. Qd2 {[%clk 0:00:07]}  Nc4 {[%clk 0:00:20]} 26. Qd1 {[%clk 0:00:03]}  Bxa1 {[%clk 0:00:20]} 27. Qxa1 {[%clk 0:00:04]}  Re8 {[%clk 0:00:19]} 28. Nf6+ {[%clk 0:00:04]}  Qxf6 {[%clk 0:00:20]} 0-1


[Site "https://www.chess.com"]

[Event "Titled Tuesday Blitz January 31 Early 2023"]
[White "Pranav, V"]
[Black "Cunha, Lucas Aguiar"]
[WhiteFideId "25060783"]
[BlackFideId "2125404"]
[WhiteElo "2597"]
[BlackElo "2309"]
[Result "1-0"]
[Round "02"]
[TimeControl "180+2"]
[Date "2023.01.31"]
[WhiteClock "0:00:07"]
[BlackClock "0:00:25"]

1. Nf3 {[%clk 0:02:59]}  d5 {[%clk 0:02:59]} 2. g3 {[%clk 0:02:59]}  c5 {[%clk 0:02:58]} 3. Bg2 {[%clk 0:02:59]}  Nc6 {[%clk 0:02:59]} 4. O-O {[%clk 0:02:59]}  Nf6 {[%clk 0:02:59]} 5. d3 {[%clk 0:02:59]}  g6 {[%clk 0:02:59]} 6. Nbd2 {[%clk 0:03:00]}  Bg7 {[%clk 0:02:59]} 7. e4 {[%clk 0:03:00]}  O-O {[%clk 0:02:59]} 8. Re1 {[%clk 0:03:00]}  e6 {[%clk 0:02:59]} 9. exd5 {[%clk 0:02:54]}  exd5 {[%clk 0:03:00]} 10. Nb3 {[%clk 0:02:52]}  b6 {[%clk 0:02:59]} 11. h3 {[%clk 0:02:52]}  h6 {[%clk 0:02:58]} 12. c3 {[%clk 0:02:50]}  a5 {[%clk 0:02:58]} 13. d4 {[%clk 0:02:49]}  a4 {[%clk 0:02:57]} 14. Nbd2 {[%clk 0:02:49]}  Be6 {[%clk 0:02:53]} 15. Rb1 {[%clk 0:02:42]}  Qd7 {[%clk 0:02:52]} 16. Kh2 {[%clk 0:02:41]}  Bf5 {[%clk 0:02:48]} 17. Ra1 {[%clk 0:02:40]}  Ne4 {[%clk 0:02:38]} 18. Rf1 {[%clk 0:02:19]}  cxd4 {[%clk 0:02:35]} 19. Nxd4 {[%clk 0:02:17]}  Nxd4 {[%clk 0:02:33]} 20. cxd4 {[%clk 0:02:17]}  Bxd4 {[%clk 0:02:29]} 21. Nxe4 {[%clk 0:02:07]}  dxe4 {[%clk 0:02:29]} 22. Bxh6 {[%clk 0:02:07]}  Bxb2 {[%clk 0:02:14]} 23. Rb1 {[%clk 0:01:32]}  Qxd1 {[%clk 0:01:50]} 24. Rfxd1 {[%clk 0:01:33]}  Bg7 {[%clk 0:01:50]} 25. Bxg7 {[%clk 0:01:33]}  Kxg7 {[%clk 0:01:51]} 26. Rxb6 {[%clk 0:01:33]}  Rab8 {[%clk 0:01:48]} 27. Rdb1 {[%clk 0:00:59]}  Rxb6 {[%clk 0:01:45]} 28. Rxb6 {[%clk 0:01:00]}  Rc8 {[%clk 0:01:20]} 29. g4 {[%clk 0:00:56]}  Be6 {[%clk 0:01:18]} 30. Bxe4 {[%clk 0:00:40]}  Bxa2 {[%clk 0:01:17]} 31. Ra6 {[%clk 0:00:40]}  Bb3 {[%clk 0:01:13]} 32. h4 {[%clk 0:00:39]}  Re8 {[%clk 0:00:59]} 33. f3 {[%clk 0:00:38]}  Re6 {[%clk 0:00:59]} 34. Ra7 {[%clk 0:00:37]}  Kf6 {[%clk 0:00:59]} 35. Kg3 {[%clk 0:00:36]}  Rd6 {[%clk 0:00:57]} 36. Kf4 {[%clk 0:00:36]}  Kg7 {[%clk 0:00:54]} 37. h5 {[%clk 0:00:21]}  gxh5 {[%clk 0:00:53]} 38. gxh5 {[%clk 0:00:22]}  Kh6 {[%clk 0:00:52]} 39. Kg4 {[%clk 0:00:15]}  Be6+ {[%clk 0:00:39]} 40. Kh4 {[%clk 0:00:15]}  f5 {[%clk 0:00:39]} 41. Bc2 {[%clk 0:00:08]}  Rd4+ {[%clk 0:00:40]} 42. Kg3 {[%clk 0:00:08]}  f4+ {[%clk 0:00:25]} 43. Kh4 {[%clk 0:00:08]}  Rd2 {[%clk 0:00:25]} 44. Rh7# {[%clk 0:00:07]} 1-0


[Site "https://www.chess.com"]

[Event "Titled Tuesday Blitz January 31 Early 2023"]
[White "Martinez Ramirez, Lennis"]
[Black "Indjic, Aleksandar"]
[WhiteFideId "3509079"]
[BlackFideId "911925"]
[WhiteElo "2426"]
[BlackElo "2618"]
[Result "1-0"]
[Round "02"]
[TimeControl "180+2"]
[Date "2023.01.31"]
[WhiteClock "0:00:21"]
[BlackClock "0:00:07"]

1. c4 {[%clk 0:03:00]}  e5 {[%clk 0:02:58]} 2. Nc3 {[%clk 0:02:56]}  Bb4 {[%clk 0:02:57]} 3. Nd5 {[%clk 0:02:54]}  a5 {[%clk 0:02:57]} 4. g3 {[%clk 0:02:51]}  d6 {[%clk 0:02:54]} 5. Bg2 {[%clk 0:02:51]}  Nf6 {[%clk 0:02:53]} 6. e3 {[%clk 0:02:50]}  Nxd5 {[%clk 0:02:41]} 7. cxd5 {[%clk 0:02:51]}  Nd7 {[%clk 0:02:41]} 8. Ne2 {[%clk 0:02:49]}  Bc5 {[%clk 0:02:41]} 9. d4 {[%clk 0:02:49]}  Bb6 {[%clk 0:02:41]} 10. O-O {[%clk 0:02:48]}  O-O {[%clk 0:02:41]} 11. b3 {[%clk 0:02:46]}  Re8 {[%clk 0:02:40]} 12. dxe5 {[%clk 0:02:44]}  Nxe5 {[%clk 0:02:39]} 13. h3 {[%clk 0:02:43]}  a4 {[%clk 0:02:34]} 14. bxa4 {[%clk 0:02:39]}  Bd7 {[%clk 0:02:33]} 15. Nc3 {[%clk 0:02:39]}  Ba5 {[%clk 0:02:11]} 16. Bb2 {[%clk 0:02:26]}  Nc4 {[%clk 0:02:11]} 17. Qb3 {[%clk 0:02:25]}  Nxb2 {[%clk 0:02:11]} 18. Qxb2 {[%clk 0:02:26]}  Qf6 {[%clk 0:02:09]} 19. Rfc1 {[%clk 0:02:25]}  Bb6 {[%clk 0:02:05]} 20. Rab1 {[%clk 0:02:22]}  h5 {[%clk 0:01:54]} 21. Nb5 {[%clk 0:02:09]}  Bxb5 {[%clk 0:01:46]} 22. Qxf6 {[%clk 0:02:04]}  gxf6 {[%clk 0:01:46]} 23. axb5 {[%clk 0:01:57]}  Rxa2 {[%clk 0:01:46]} 24. Rc4 {[%clk 0:01:53]}  Re5 {[%clk 0:01:43]} 25. Rf4 {[%clk 0:01:47]}  Kg7 {[%clk 0:01:42]} 26. Bf3 {[%clk 0:01:46]}  Rg5 {[%clk 0:01:24]} 27. Kf1 {[%clk 0:01:46]}  Kg6 {[%clk 0:01:18]} 28. Be4+ {[%clk 0:01:43]}  Kg7 {[%clk 0:01:16]} 29. Re1 {[%clk 0:01:28]}  Re5 {[%clk 0:01:14]} 30. Kg2 {[%clk 0:01:20]}  Rb2 {[%clk 0:01:11]} 31. Rb1 {[%clk 0:00:59]}  Rxb1 {[%clk 0:01:09]} 32. Bxb1 {[%clk 0:00:59]}  Rxd5 {[%clk 0:01:08]} 33. Rf5 {[%clk 0:01:00]}  Rd2 {[%clk 0:01:03]} 34. Kf3 {[%clk 0:00:58]}  Rb2 {[%clk 0:00:57]} 35. Be4 {[%clk 0:00:56]}  Ba5 {[%clk 0:00:57]} 36. Bxb7 {[%clk 0:00:55]}  Be1 {[%clk 0:00:57]} 37. Kg2 {[%clk 0:00:54]}  Bd2 {[%clk 0:00:49]} 38. Kf1 {[%clk 0:00:52]}  Bc3 {[%clk 0:00:46]} 39. Rxh5 {[%clk 0:00:50]}  Be5 {[%clk 0:00:46]} 40. Bc6 {[%clk 0:00:49]}  Rc2 {[%clk 0:00:37]} 41. Rh4 {[%clk 0:00:48]}  f5 {[%clk 0:00:37]} 42. Ra4 {[%clk 0:00:47]}  Rc1+ {[%clk 0:00:33]} 43. Kg2 {[%clk 0:00:47]}  Ra1 {[%clk 0:00:33]} 44. Rc4 {[%clk 0:00:43]}  Ra7 {[%clk 0:00:26]} 45. Rc2 {[%clk 0:00:41]}  Kf6 {[%clk 0:00:26]} 46. f4 {[%clk 0:00:40]}  Ba1 {[%clk 0:00:25]} 47. Kf3 {[%clk 0:00:40]}  Kg6 {[%clk 0:00:25]} 48. Bd5 {[%clk 0:00:40]}  Bf6 {[%clk 0:00:25]} 49. Bc4 {[%clk 0:00:36]}  Ra3 {[%clk 0:00:24]} 50. Rd2 {[%clk 0:00:37]}  Rc3 {[%clk 0:00:21]} 51. Bd3 {[%clk 0:00:37]}  Rc5 {[%clk 0:00:13]} 52. g4 {[%clk 0:00:37]}  Kg7 {[%clk 0:00:14]} 53. gxf5 {[%clk 0:00:36]}  d5 {[%clk 0:00:14]} 54. Rc2 {[%clk 0:00:32]}  Rxc2 {[%clk 0:00:13]} 55. Bxc2 {[%clk 0:00:33]}  Kf8 {[%clk 0:00:10]} 56. Bb3 {[%clk 0:00:32]}  d4 {[%clk 0:00:10]} 57. e4 {[%clk 0:00:33]}  d3 {[%clk 0:00:10]} 58. Ke3 {[%clk 0:00:33]}  Bh4 {[%clk 0:00:11]} 59. Kxd3 {[%clk 0:00:33]}  Bd8 {[%clk 0:00:06]} 60. e5 {[%clk 0:00:33]}  f6 {[%clk 0:00:07]} 61. e6 {[%clk 0:00:32]}  Be7 {[%clk 0:00:07]} 62. Ke4 {[%clk 0:00:31]}  Bd6 {[%clk 0:00:07]} 63. h4 {[%clk 0:00:24]}  Ke8 {[%clk 0:00:07]} 64. h5 {[%clk 0:00:25]}  Kf8 {[%clk 0:00:07]} 65. Ba4 {[%clk 0:00:23]}  Kg7 {[%clk 0:00:07]} 66. Bd1 {[%clk 0:00:23]}  Kh6 {[%clk 0:00:07]} 67. Kd5 {[%clk 0:00:22]}  Kg7 {[%clk 0:00:07]} 68. Kc6 {[%clk 0:00:21]}  Bxf4 {[%clk 0:00:07]} 69. Kd7 {[%clk 0:00:21]}  Bd6 {[%clk 0:00:07]} 70. e7 {[%clk 0:00:21]} 1-0


[Site "https://www.chess.com"]

[Event "Titled Tuesday Blitz January 31 Early 2023"]
[White "Makhnev, Denis"]
[Black "Oro, Faustino"]
[WhiteFideId "13707647"]
[BlackFideId "20000197"]
[WhiteElo "2483"]
[BlackElo "2269"]
[Result "1-0"]
[Round "02"]
[TimeControl "180+2"]
[Date "2023.01.31"]
[WhiteClock "0:00:31"]
[BlackClock "0:00:13"]

1. d4 {[%clk 0:03:00]}  Nf6 {[%clk 0:02:59]} 2. c4 {[%clk 0:03:01]}  e6 {[%clk 0:03:00]} 3. g3 {[%clk 0:03:00]}  d5 {[%clk 0:03:00]} 4. Bg2 {[%clk 0:03:01]}  Be7 {[%clk 0:03:00]} 5. Nf3 {[%clk 0:03:01]}  O-O {[%clk 0:03:00]} 6. O-O {[%clk 0:03:02]}  dxc4 {[%clk 0:02:59]} 7. Qc2 {[%clk 0:03:03]}  a6 {[%clk 0:02:59]} 8. a4 {[%clk 0:03:03]}  Bd7 {[%clk 0:02:59]} 9. Qxc4 {[%clk 0:03:03]}  Bc6 {[%clk 0:03:00]} 10. Bf4 {[%clk 0:03:04]}  a5 {[%clk 0:02:59]} 11. Nc3 {[%clk 0:03:04]}  Na6 {[%clk 0:02:59]} 12. Rfd1 {[%clk 0:03:01]}  Nb4 {[%clk 0:02:58]} 13. Qb3 {[%clk 0:03:00]}  Nfd5 {[%clk 0:02:43]} 14. Ne5 {[%clk 0:02:50]}  Nxf4 {[%clk 0:02:39]} 15. gxf4 {[%clk 0:02:50]}  Bxg2 {[%clk 0:02:23]} 16. Kxg2 {[%clk 0:02:50]}  c6 {[%clk 0:02:18]} 17. e3 {[%clk 0:02:50]}  Qc7 {[%clk 0:02:16]} 18. Rac1 {[%clk 0:02:47]}  Rae8 {[%clk 0:02:15]} 19. Kh1 {[%clk 0:02:46]}  Qb8 {[%clk 0:02:10]} 20. Nd7 {[%clk 0:02:42]}  Qc7 {[%clk 0:02:03]} 21. Nxf8 {[%clk 0:02:42]}  Rxf8 {[%clk 0:02:04]} 22. Ne4 {[%clk 0:02:42]}  b6 {[%clk 0:01:59]} 23. Qc4 {[%clk 0:02:40]}  Qd7 {[%clk 0:01:59]} 24. Rg1 {[%clk 0:02:24]}  b5 {[%clk 0:01:49]} 25. axb5 {[%clk 0:02:07]}  cxb5 {[%clk 0:01:47]} 26. Qe2 {[%clk 0:02:07]}  Qd5 {[%clk 0:01:45]} 27. f3 {[%clk 0:02:07]}  f5 {[%clk 0:01:39]} 28. Nc3 {[%clk 0:02:02]}  Qb3 {[%clk 0:01:34]} 29. Nxb5 {[%clk 0:01:50]}  a4 {[%clk 0:01:05]} 30. Rc7 {[%clk 0:01:13]}  Bf6 {[%clk 0:00:57]} 31. Rc3 {[%clk 0:01:12]}  Qd5 {[%clk 0:00:56]} 32. Rc5 {[%clk 0:01:11]}  Qb3 {[%clk 0:00:49]} 33. Kg2 {[%clk 0:01:08]}  Rb8 {[%clk 0:00:45]} 34. Rgc1 {[%clk 0:01:04]}  Kf7 {[%clk 0:00:36]} 35. Nd6+ {[%clk 0:01:01]}  Kg6 {[%clk 0:00:35]} 36. Kh1 {[%clk 0:01:00]}  h6 {[%clk 0:00:34]} 37. R5c3 {[%clk 0:00:37]}  Qd5 {[%clk 0:00:32]} 38. Nc4 {[%clk 0:00:37]}  Na2 {[%clk 0:00:31]} 39. Rg1+ {[%clk 0:00:37]}  Kh7 {[%clk 0:00:30]} 40. Ra3 {[%clk 0:00:38]}  Nb4 {[%clk 0:00:28]} 41. Rxa4 {[%clk 0:00:37]}  Qb5 {[%clk 0:00:21]} 42. b3 {[%clk 0:00:35]}  Nd5 {[%clk 0:00:20]} 43. Ra7 {[%clk 0:00:35]}  Qxb3 {[%clk 0:00:19]} 44. Qg2 {[%clk 0:00:35]}  Rg8 {[%clk 0:00:15]} 45. Qg6+ {[%clk 0:00:31]}  Kh8 {[%clk 0:00:16]} 46. Nd6 {[%clk 0:00:32]}  Rf8 {[%clk 0:00:13]} 47. Rxg7 {[%clk 0:00:31]} 1-0


[Site "https://www.chess.com"]

[Event "Titled Tuesday Blitz January 31 Early 2023"]
[White "Darini, Pouria"]
[Black "Eljanov, Pavel"]
[WhiteFideId "12502200"]
[BlackFideId "14102951"]
[WhiteElo "2401"]
[BlackElo "2705"]
[Result "1-0"]
[Round "02"]
[TimeControl "180+2"]
[Date "2023.01.31"]
[WhiteClock "0:00:06"]
[BlackClock "0:00:17"]

1. e4 {[%clk 0:03:00]}  c6 {[%clk 0:02:56]} 2. d4 {[%clk 0:02:59]}  d5 {[%clk 0:02:56]} 3. e5 {[%clk 0:03:00]}  Bf5 {[%clk 0:02:56]} 4. h4 {[%clk 0:02:57]}  h5 {[%clk 0:02:55]} 5. Bd3 {[%clk 0:02:57]}  Bxd3 {[%clk 0:02:55]} 6. Qxd3 {[%clk 0:02:58]}  Qa5+ {[%clk 0:02:55]} 7. Nd2 {[%clk 0:02:54]}  e6 {[%clk 0:02:54]} 8. Nf3 {[%clk 0:02:49]}  Nh6 {[%clk 0:02:54]} 9. O-O {[%clk 0:02:39]}  Nf5 {[%clk 0:02:54]} 10. g3 {[%clk 0:02:39]}  Nd7 {[%clk 0:02:46]} 11. c4 {[%clk 0:02:33]}  Be7 {[%clk 0:02:42]} 12. b3 {[%clk 0:01:37]}  O-O {[%clk 0:02:42]} 13. Bb2 {[%clk 0:01:34]}  Rfd8 {[%clk 0:02:40]} 14. Rfd1 {[%clk 0:01:34]}  Qa6 {[%clk 0:02:28]} 15. a4 {[%clk 0:01:08]}  c5 {[%clk 0:02:27]} 16. Qe2 {[%clk 0:00:52]}  g6 {[%clk 0:02:19]} 17. Kf1 {[%clk 0:00:43]}  Rac8 {[%clk 0:02:13]} 18. cxd5 {[%clk 0:00:42]}  Qxe2+ {[%clk 0:02:13]} 19. Kxe2 {[%clk 0:00:43]}  exd5 {[%clk 0:02:14]} 20. dxc5 {[%clk 0:00:32]}  Nxc5 {[%clk 0:02:14]} 21. Rac1 {[%clk 0:00:33]}  Ne6 {[%clk 0:01:36]} 22. Rxc8 {[%clk 0:00:31]}  Rxc8 {[%clk 0:01:36]} 23. Rc1 {[%clk 0:00:30]}  Rxc1 {[%clk 0:01:34]} 24. Bxc1 {[%clk 0:00:31]}  Kf8 {[%clk 0:01:33]} 25. Bb2 {[%clk 0:00:27]}  Ke8 {[%clk 0:01:33]} 26. Nf1 {[%clk 0:00:21]}  Bc5 {[%clk 0:01:30]} 27. N1d2 {[%clk 0:00:14]}  Kd7 {[%clk 0:01:30]} 28. Bc3 {[%clk 0:00:14]}  d4 {[%clk 0:01:16]} 29. Bb2 {[%clk 0:00:12]}  d3+ {[%clk 0:01:16]} 30. Ke1 {[%clk 0:00:06]}  Ned4 {[%clk 0:01:16]} 31. Nxd4 {[%clk 0:00:05]}  Nxd4 {[%clk 0:01:14]} 32. Bxd4 {[%clk 0:00:06]}  Bxd4 {[%clk 0:01:14]} 33. f4 {[%clk 0:00:03]}  Ke6 {[%clk 0:01:14]} 34. Nf3 {[%clk 0:00:02]}  Be3 {[%clk 0:00:53]} 35. Ng5+ {[%clk 0:00:03]}  Ke7 {[%clk 0:00:53]} 36. Ne4 {[%clk 0:00:03]}  a6 {[%clk 0:00:46]} 37. Kd1 {[%clk 0:00:04]}  Ke6 {[%clk 0:00:42]} 38. Ng5+ {[%clk 0:00:04]}  Kf5 {[%clk 0:00:39]} 39. Nxf7 {[%clk 0:00:04]}  Bf2 {[%clk 0:00:39]} 40. Nd6+ {[%clk 0:00:04]}  Ke6 {[%clk 0:00:36]} 41. Nxb7 {[%clk 0:00:05]}  Bxg3 {[%clk 0:00:35]} 42. Nc5+ {[%clk 0:00:05]}  Kf5 {[%clk 0:00:35]} 43. Nxd3 {[%clk 0:00:06]}  Bxh4 {[%clk 0:00:35]} 44. Ke2 {[%clk 0:00:06]}  Ke4 {[%clk 0:00:31]} 45. e6 {[%clk 0:00:07]}  Be7 {[%clk 0:00:31]} 46. b4 {[%clk 0:00:07]}  Kd5 {[%clk 0:00:30]} 47. b5 {[%clk 0:00:05]}  a5 {[%clk 0:00:30]} 48. Ne5 {[%clk 0:00:05]}  Kxe6 {[%clk 0:00:26]} 49. Nxg6 {[%clk 0:00:05]}  Bd6 {[%clk 0:00:26]} 50. Kf3 {[%clk 0:00:05]}  Kf6 {[%clk 0:00:21]} 51. Ne5 {[%clk 0:00:05]}  Kf5 {[%clk 0:00:21]} 52. Nc4 {[%clk 0:00:05]}  Bc7 {[%clk 0:00:17]} 53. b6 {[%clk 0:00:05]}  Bb8 {[%clk 0:00:18]} 54. Nxa5 {[%clk 0:00:05]}  Bxf4 {[%clk 0:00:18]} 55. Nc6 {[%clk 0:00:04]}  Bd6 {[%clk 0:00:16]} 56. a5 {[%clk 0:00:05]}  Ke6 {[%clk 0:00:17]} 57. a6 {[%clk 0:00:05]}  Kd7 {[%clk 0:00:17]} 58. a7 {[%clk 0:00:06]} 1-0


[Site "https://www.chess.com"]

[Event "Titled Tuesday Blitz January 31 Early 2023"]
[White "Alex_Sahakyan2006"]
[Black "Narayanan.S.L"]
[BlackFideId "5058422"]
[WhiteElo "2661"]
[BlackElo "2660"]
[Result "0-1"]
[Round "02"]
[TimeControl "180+2"]
[Date "2023.01.31"]
[WhiteClock "0:00:02"]
[BlackClock "0:01:06"]

1. d4 {[%clk 0:03:00]}  d5 {[%clk 0:02:56]} 2. c4 {[%clk 0:03:00]}  e6 {[%clk 0:02:55]} 3. Nf3 {[%clk 0:02:59]}  c5 {[%clk 0:02:55]} 4. cxd5 {[%clk 0:02:56]}  exd5 {[%clk 0:02:54]} 5. g3 {[%clk 0:02:54]}  Nc6 {[%clk 0:02:54]} 6. Bg2 {[%clk 0:02:53]}  Nf6 {[%clk 0:02:54]} 7. O-O {[%clk 0:02:51]}  Be7 {[%clk 0:02:53]} 8. dxc5 {[%clk 0:02:51]}  Bxc5 {[%clk 0:02:53]} 9. a3 {[%clk 0:02:52]}  O-O {[%clk 0:02:53]} 10. b4 {[%clk 0:02:51]}  Bb6 {[%clk 0:02:54]} 11. Bb2 {[%clk 0:02:51]}  Ne4 {[%clk 0:02:54]} 12. Nbd2 {[%clk 0:02:48]}  Nd6 {[%clk 0:02:38]} 13. Qb3 {[%clk 0:02:40]}  Be6 {[%clk 0:02:36]} 14. Rfd1 {[%clk 0:02:38]}  h6 {[%clk 0:02:31]} 15. Qd3 {[%clk 0:02:33]}  Qe7 {[%clk 0:02:24]} 16. Rac1 {[%clk 0:02:33]}  Rfd8 {[%clk 0:02:24]} 17. e3 {[%clk 0:02:10]}  Nc4 {[%clk 0:02:14]} 18. Nxc4 {[%clk 0:02:04]}  dxc4 {[%clk 0:02:13]} 19. Qc3 {[%clk 0:02:04]}  Rxd1+ {[%clk 0:02:10]} 20. Rxd1 {[%clk 0:02:05]}  f6 {[%clk 0:02:10]} 21. Bf1 {[%clk 0:01:57]}  Qf7 {[%clk 0:02:07]} 22. a4 {[%clk 0:01:27]}  a5 {[%clk 0:01:51]} 23. b5 {[%clk 0:01:24]}  Nb4 {[%clk 0:01:52]} 24. Rd6 {[%clk 0:01:23]}  Bd5 {[%clk 0:01:43]} 25. Rxb6 {[%clk 0:01:18]}  Bxf3 {[%clk 0:01:43]} 26. Bxc4 {[%clk 0:01:18]}  Bd5 {[%clk 0:01:44]} 27. Bf1 {[%clk 0:01:09]}  Qg6 {[%clk 0:01:41]} 28. Qd4 {[%clk 0:00:57]}  Qf5 {[%clk 0:01:27]} 29. Rd6 {[%clk 0:00:30]}  Be4 {[%clk 0:01:22]} 30. Be2 {[%clk 0:00:14]}  Rc8 {[%clk 0:01:13]} 31. Rd8+ {[%clk 0:00:13]}  Rxd8 {[%clk 0:01:13]} 32. Qxd8+ {[%clk 0:00:14]}  Kh7 {[%clk 0:01:14]} 33. Qd6 {[%clk 0:00:13]}  Nd5 {[%clk 0:01:11]} 34. g4 {[%clk 0:00:11]}  Qg5 {[%clk 0:01:09]} 35. Qg3 {[%clk 0:00:09]}  Nb4 {[%clk 0:01:06]} 36. Bc3 {[%clk 0:00:08]}  Qd5 {[%clk 0:01:06]} 37. h4 {[%clk 0:00:04]}  Qb3 {[%clk 0:01:05]} 38. Bxb4 {[%clk 0:00:04]}  axb4 {[%clk 0:01:05]} 39. Qf4 {[%clk 0:00:05]}  Qb1+ {[%clk 0:01:05]} 40. Bf1 {[%clk 0:00:04]}  b3 {[%clk 0:01:06]} 41. g5 {[%clk 0:00:01]}  b2 {[%clk 0:01:06]} 42. gxf6 {[%clk 0:00:01]}  Qxf1+ {[%clk 0:01:06]} 43. Kxf1 {[%clk 0:00:01]}  b1=Q+ {[%clk 0:01:07]} 44. Ke2 {[%clk 0:00:02]}  Qc2+ {[%clk 0:01:06]} 45. Kf1 {[%clk 0:00:02]}  Qd1# {[%clk 0:01:06]} 0-1


[Site "https://www.chess.com"]